[Event "Mitropa Online Cup Women 2021"]
[Site "Hybrid"]
[Date "2021.05.04"]
[Round "4.4"]
[White "Heinatz, Gundula"]
[Black "Sedina, Elena"]
[Result "1/2-1/2"]
[ECO "B07"]
[WhiteElo "2131"]
[BlackElo "2291"]
[Annotator "NA"]
[PlyCount "77"]
[EventDate "2021.05.04"]
[EventType "team-tourn"]
[EventCountry "NET"]
[SourceTitle "playchess.com"]
[Source "ChessBase"]
[SourceQuality "1"]
[WhiteTeam "Switzerland"]
[BlackTeam "Italy"]
[WhiteTeamCountry "SUI"]
[BlackTeamCountry "ITA"]
[TimeControl "40/5400+30:1800+30"]

1. d4 {[%emt 0:00:00]} Nf6 {[%emt 0:00:16]} 2. Bf4 {[%emt 0:00:11]} d6 {[%emt 0:09:24]} 3. Nc3 {[%emt 0:00:48]} g6 {[%emt 0:16:04]} 4. Qd2 {[%emt 0:06:01]} c6 {[%emt 0:08:11]} 5. e4 {[%emt 0:05:38]} b5 {[%emt 0:07:11]} 6. a3 {[%emt 0:03:06]} Nbd7 {[%emt 0:14:13]} 7. Nf3 {[%emt 0:01:14]} Bg7 {[%emt 0:05:07]} 8. Rd1 {[%emt 0:10:57]} O-O {[%emt 0:02:00]} 9. h3 {[%emt 0:03:19]} a5 {[%emt 0:07:13]} 10. Bd3 {[%emt 0:07:37]} Qc7 {[%emt 0:09:56]} 11. O-O {[%emt 0:06:43]} e5 {[%emt 0:00:38]} 12. dxe5 {[%emt 0:10:07]} dxe5 {[%emt 0:08:56]} 13. Bh6 {[%emt 0:02:36]} Nc5 {[%emt 0:02:16]} 14. Bxg7 {[%emt 0:01:16]} Kxg7 {[%emt 0:00:09]} 15. Qe3 {[%emt 0:06:54]} Ne6 {[%emt 0:01:17]} 16. Ne2 {[%emt 0:01:49]} Ba6 {[%emt 0:02:21]} 17. c3 {[%emt 0:06:56]} Rfd8 {[%emt 0:01:11]} 18. Ng5 {[%emt 0:08:34]} Nxg5 {[%emt 0:00:52]} 19. Qxg5 {[%emt 0:00:08]} h6 {[%emt 0:00:13]} 20. Qe3 {[%emt 0:00:53]} Qa7 {[%emt 0:01:37]} 21. Qg3 {[%emt 0:00:46]} Qe7 {[%emt 0:00:05]} 22. f4 {[%emt 0:06:52]} Nh5 {[%emt 0:00:05]} 23. Qf3 {[%emt 0:00:24]} Nxf4 {[%emt 0:00:55]} 24. Nxf4 {[%emt 0:00:46]} exf4 {[%emt 0:00:02]} 25. Qxf4 {[%emt 0:00:11]} Rd7 {[%emt 0:00:51]} 26. Bc2 {[%emt 0:01:40]} Rad8 {[%emt 0:01:17]} 27. Rxd7 {[%emt 0:00:41]} Rxd7 {[%emt 0:00:03]} 28. Bb3 {[%emt 0:00:56]} f6 {[%emt 0:00:42]} 29. h4 {[%emt 0:04:04]} Qe5 {[%emt 0:00:32]} 30. Qf2 {[%emt 0:01:07]} Bc8 {[%emt 0:00:46]} 31. h5 {[%emt 0:01:22]} g5 {[%emt 0:00:12]} 32. Qe3 {[%emt 0:01:23]} Re7 {[%emt 0:00:20]} 33. Re1 {[%emt 0:00:36]} f5 {[%emt 0:00:52]} 34. Qb6 {[%emt 0:00:36]} a4 {[%emt 0:00:32]} 35. Ba2 {[%emt 0:00:34]} Qc7 {[%emt 0:00:37]} 36. Qd4+ {[%emt 0:00:34]} Qe5 {[%emt 0:00:03]} 37. Qb6 {[%emt 0:00:07]} Qc7 {[%emt 0:00:33]} 38. Qd4+ {[%emt 0:00:06]} Qe5 {[%emt 0:00:03]} 39. Qb6 {[%emt 0:00:07]} 1/2-1/2

[Event "Mitropa Online Cup Women 2021"]
[Site "Hybrid"]
[Date "2021.05.04"]
[Round "4.4"]
[White "Grimaldi, Angela Flavia"]
[Black "Hund, Sarah"]
[Result "1-0"]
[ECO "C55"]
[WhiteElo "2060"]
[BlackElo "2049"]
[Annotator "NA"]
[PlyCount "133"]
[EventDate "2021.05.04"]
[EventType "team-tourn"]
[EventCountry "NET"]
[SourceTitle "playchess.com"]
[Source "ChessBase"]
[SourceQuality "1"]
[WhiteTeam "Italy"]
[BlackTeam "Switzerland"]
[WhiteTeamCountry "ITA"]
[BlackTeamCountry "SUI"]
[TimeControl "40/5400+30:1800+30"]

1. e4 {[%emt 0:00:00]} e5 {[%emt 0:00:10]} 2. Nf3 {[%emt 0:00:05]} Nc6 {[%emt 0:00:08]} 3. Bc4 {[%emt 0:00:04]} Nf6 {[%emt 0:00:16]} 4. d3 {[%emt 0:00:05]} Be7 {[%emt 0:00:23]} 5. h3 {[%emt 0:00:13]} d6 {[%emt 0:02:41]} 6. O-O {[%emt 0:00:12]} Na5 {[%emt 0:01:36]} 7. Bb5+ {[%emt 0:01:34]} c6 {[%emt 0:00:30]} 8. Ba4 {[%emt 0:00:05]} b5 {[%emt 0:00:44]} 9. Bb3 {[%emt 0:00:13]} O-O {[%emt 0:01:33]} 10. Nbd2 {[%emt 0:04:09]} Qc7 {[%emt 0:04:40]} 11. Re1 {[%emt 0:02:08]} Nxb3 {[%emt 0:05:49]} 12. axb3 {[%emt 0:00:59]} Be6 {[%emt 0:01:37]} 13. Nf1 {[%emt 0:02:15]} Rfe8 {[%emt 0:04:09]} 14. Bd2 {[%emt 0:17:09]} g6 {[%emt 0:06:34]} 15. c4 {[%emt 0:12:09]} Reb8 {[%emt 0:04:05]} 16. Qc2 {[%emt 0:02:50]} Nd7 {[%emt 0:03:41]} 17. Ra5 {[%emt 0:16:23]} Bd8 {[%emt 0:15:54]} 18. b4 {[%emt 0:13:22]} Nf8 {[%emt 0:07:58]} 19. b3 {[%emt 0:02:38]} Qe7 {[%emt 0:03:36]} 20. Ra2 {[%emt 0:03:38]} Bb6 {[%emt 0:01:18]} 21. Rc1 {[%emt 0:09:54]} Nd7 {[%emt 0:09:39]} 22. Bc3 {[%emt 0:02:50]} Qf6 {[%emt 0:03:30]} 23. Qe2 {[%emt 0:00:25]} Bd4 {[%emt 0:03:02]} 24. Nxd4 {[%emt 0:05:36]} exd4 {[%emt 0:00:07]} 25. Bd2 {[%emt 0:00:08]} c5 {[%emt 0:02:13]} 26. bxc5 {[%emt 0:01:16]} Nxc5 {[%emt 0:00:55]} 27. b4 {[%emt 0:01:57]} bxc4 {[%emt 0:05:27]} 28. dxc4 {[%emt 0:00:32]} d3 {[%emt 0:01:22]} 29. Qe3 {[%emt 0:00:39]} Nb3 {[%emt 0:00:46]} 30. Bc3 {[%emt 0:00:41]} Qe7 {[%emt 0:03:25]} 31. Rb1 {[%emt 0:00:13]} Bxc4 {[%emt 0:00:26]} 32. Ra3 {[%emt 0:00:13]} d2 {[%emt 0:04:11]} 33. Nxd2 {[%emt 0:00:26]} Nxd2 {[%emt 0:00:09]} 34. Bxd2 {[%emt 0:00:32]} a5 {[%emt 0:00:44]} 35. Qd4 {[%emt 0:00:21]} Be6 {[%emt 0:00:38]} 36. Bc3 {[%emt 0:00:27]} f6 {[%emt 0:00:09]} 37. Rba1 {[%emt 0:00:38]} Rb7 {[%emt 0:02:21]} 38. Rxa5 {[%emt 0:00:18]} Rc8 {[%emt 0:00:02]} 39. Ra8 {[%emt 0:00:29]} Kg7 {[%emt 0:01:05]} 40. Rxc8 {[%emt 0:00:00]} Bxc8 {[%emt 0:00:00]} 41. Rd1 {[%emt 0:03:08]} Rc7 {[%emt 0:05:01]} 42. Rd3 {[%emt 0:04:52]} Qe5 {[%emt 0:03:56]} 43. Qe3 {[%emt 0:03:54]} Qe6 {[%emt 0:00:49]} 44. Qf4 {[%emt 0:02:38]} Rd7 {[%emt 0:01:27]} 45. h4 {[%emt 0:07:24]} Bb7 {[%emt 0:06:33]} 46. h5 {[%emt 0:04:54]} Bxe4 {[%emt 0:03:30]} 47. Bxf6+ {[%emt 0:03:43]} Qxf6 {[%emt 0:01:26]} 48. Qxe4 {[%emt 0:00:13]} Re7 {[%emt 0:03:04]} 49. Qd4 {[%emt 0:00:45]} Re1+ {[%emt 0:02:57]} 50. Kh2 {[%emt 0:00:08]} Re5 {[%emt 0:01:20]} 51. hxg6 {[%emt 0:02:42]} hxg6 {[%emt 0:00:16]} 52. f4 {[%emt 0:02:26]} Rh5+ {[%emt 0:03:54]} 53. Kg1 {[%emt 0:00:16]} d5 {[%emt 0:00:10]} 54. Qxf6+ {[%emt 0:00:29]} Kxf6 {[%emt 0:00:03]} 55. Kf2 {[%emt 0:00:27]} Ke6 {[%emt 0:00:09]} 56. Rb3 {[%emt 0:00:15]} d4 {[%emt 0:03:29]} 57. b5 {[%emt 0:00:28]} Rh7 {[%emt 0:00:20]} 58. b6 {[%emt 0:00:11]} Rb7 {[%emt 0:00:02]} 59. Ke2 {[%emt 0:00:19]} Kf5 {[%emt 0:00:19]} 60. Kd3 {[%emt 0:00:13]} Kxf4 {[%emt 0:00:47]} 61. Kxd4 {[%emt 0:00:06]} g5 {[%emt 0:00:03]} 62. Kc5 {[%emt 0:00:13]} g4 {[%emt 0:01:08]} 63. Kc6 {[%emt 0:00:07]} Rh7 {[%emt 0:01:28]} 64. b7 {[%emt 0:00:56]} Rh6+ {[%emt 0:00:05]} 65. Kd5 {[%emt 0:00:25]} Rh8 {[%emt 0:00:09]} 66. g3+ {[%emt 0:00:27]} Kf5 {[%emt 0:00:06]} 67. b8=Q {[%emt 0:00:06]} 1-0

[Event "Mitropa Online Cup Women 2021"]
[Site "Hybrid"]
[Date "2021.05.04"]
[Round "4.5"]
[White "Cvitan, Ena"]
[Black "Janzelj, Lara"]
[Result "1-0"]
[ECO "D13"]
[WhiteElo "2263"]
[BlackElo "2212"]
[Annotator "NA"]
[PlyCount "89"]
[EventDate "2021.05.04"]
[EventType "team-tourn"]
[EventCountry "NET"]
[SourceTitle "playchess.com"]
[Source "ChessBase"]
[SourceQuality "1"]
[WhiteTeam "Croatia"]
[BlackTeam "Slovenia"]
[WhiteTeamCountry "CRO"]
[BlackTeamCountry "SLO"]
[TimeControl "40/5400+30:1800+30"]

1. d4 {[%emt 0:00:00]} d5 {[%emt 0:00:08]} 2. c4 {[%emt 0:00:07]} c6 {[%emt 0:00:06]} 3. cxd5 {[%emt 0:00:09]} cxd5 {[%emt 0:00:06]} 4. Nc3 {[%emt 0:00:09]} Nf6 {[%emt 0:00:12]} 5. Bf4 {[%emt 0:00:13]} Nc6 {[%emt 0:00:14]} 6. e3 {[%emt 0:00:20]} a6 {[%emt 0:00:16]} 7. Be2 {[%emt 0:00:33]} Bf5 {[%emt 0:06:35]} 8. Nf3 {[%emt 0:00:40]} e6 {[%emt 0:00:41]} 9. Qb3 {[%emt 0:00:57]} Na5 {[%emt 0:00:57]} 10. Qa4+ {[%emt 0:03:05]} Nc6 {[%emt 0:00:44]} 11. Ne5 {[%emt 0:06:35]} Qb6 {[%emt 0:13:31]} 12. O-O {[%emt 0:25:09]} Rc8 {[%emt 0:09:10]} 13. Rac1 {[%emt 0:07:00]} Be7 {[%emt 0:09:18]} 14. g4 {[%emt 0:02:51]} g5 {[%emt 0:23:07]} 15. Nxc6 {[%emt 0:09:09]} Rxc6 {[%emt 0:02:08]} 16. Be5 {[%emt 0:02:28]} Bg6 {[%emt 0:02:35]} 17. f4 {[%emt 0:01:19]} h6 {[%emt 0:08:59]} 18. fxg5 {[%emt 0:01:42]} Qxb2 {[%emt 0:03:34]} 19. gxf6 {[%emt 0:04:03]} Bb4 {[%emt 0:01:16]} 20. Rb1 {[%emt 0:11:15]} Bxb1 {[%emt 0:05:33]} 21. Rxb1 {[%emt 0:00:09]} Qxc3 {[%emt 0:00:15]} 22. Qxb4 {[%emt 0:00:54]} Qxb4 {[%emt 0:02:48]} 23. Rxb4 {[%emt 0:00:06]} Rc2 {[%emt 0:01:46]} 24. Rxb7 {[%emt 0:02:50]} O-O {[%emt 0:00:09]} 25. Bxa6 {[%emt 0:01:18]} Rxa2 {[%emt 0:00:31]} 26. Bf1 {[%emt 0:03:05]} Rc8 {[%emt 0:00:57]} 27. Rb8 {[%emt 0:02:15]} Rxb8 {[%emt 0:00:06]} 28. Bxb8 {[%emt 0:00:04]} Rd2 {[%emt 0:00:30]} 29. h4 {[%emt 0:01:39]} Rb2 {[%emt 0:02:37]} 30. Bf4 {[%emt 0:00:42]} h5 {[%emt 0:00:07]} 31. gxh5 {[%emt 0:00:41]} Rb3 {[%emt 0:00:04]} 32. Kf2 {[%emt 0:00:40]} Ra3 {[%emt 0:00:56]} 33. Ke1 {[%emt 0:03:15]} Ra1+ {[%emt 0:00:15]} 34. Ke2 {[%emt 0:00:07]} Rb1 {[%emt 0:00:48]} 35. Kf2 {[%emt 0:00:49]} Rb3 {[%emt 0:00:06]} 36. Be2 {[%emt 0:00:56]} Ra3 {[%emt 0:00:46]} 37. Bf3 {[%emt 0:01:36]} Ra2+ {[%emt 0:01:16]} 38. Kg3 {[%emt 0:00:53]} Ra3 {[%emt 0:00:20]} 39. h6 {[%emt 0:00:32]} Rb3 {[%emt 0:01:31]} 40. Bh5 {[%emt 0:00:00]} Rb7 {[%emt 0:00:00]} 41. Bd6 {[%emt 0:03:05]} Rb3 {[%emt 0:03:43]} 42. Kf4 {[%emt 0:04:19]} Rb1 {[%emt 0:01:41]} 43. Bxf7+ {[%emt 0:03:02]} Kxf7 {[%emt 0:00:37]} 44. h7 {[%emt 0:00:09]} Rf1+ {[%emt 0:01:37]} 45. Kg3 {[%emt 0:00:21]} 1-0

[Event "Mitropa Online Cup Women 2021"]
[Site "Hybrid"]
[Date "2021.05.04"]
[Round "4.5"]
[White "Urh, Zala"]
[Black "Medic, Mirjana"]
[Result "1/2-1/2"]
[ECO "A84"]
[WhiteElo "2173"]
[BlackElo "2147"]
[Annotator "NA"]
[PlyCount "107"]
[EventDate "2021.05.04"]
[EventType "team-tourn"]
[EventCountry "NET"]
[SourceTitle "playchess.com"]
[Source "ChessBase"]
[SourceQuality "1"]
[WhiteTeam "Slovenia"]
[BlackTeam "Croatia"]
[WhiteTeamCountry "SLO"]
[BlackTeamCountry "CRO"]
[TimeControl "40/5400+30:1800+30"]

1. d4 {[%emt 0:00:00]} e6 {[%emt 0:00:12]} 2. Nf3 {[%emt 0:00:23]} d5 {[%emt 0:00:59]} 3. c4 {[%emt 0:00:43]} c6 {[%emt 0:00:53]} 4. e3 {[%emt 0:03:27]} f5 {[%emt 0:02:34]} 5. Bd3 {[%emt 0:07:01]} Nf6 {[%emt 0:00:15]} 6. O-O {[%emt 0:01:47]} Bd6 {[%emt 0:01:08]} 7. b3 {[%emt 0:02:48]} Qe7 {[%emt 0:01:19]} 8. Bb2 {[%emt 0:04:27]} O-O {[%emt 0:05:29]} 9. Nbd2 {[%emt 0:04:53]} b6 {[%emt 0:15:24]} 10. Rc1 {[%emt 0:06:55]} Bb7 {[%emt 0:05:40]} 11. cxd5 {[%emt 0:03:03]} cxd5 {[%emt 0:03:06]} 12. Qe2 {[%emt 0:01:33]} Nc6 {[%emt 0:04:58]} 13. Ne5 {[%emt 0:06:20]} Nb4 {[%emt 0:05:35]} 14. a4 {[%emt 0:08:09]} Rfc8 {[%emt 0:04:46]} 15. Nb1 {[%emt 0:08:22]} Ne4 {[%emt 0:05:17]} 16. f4 {[%emt 0:05:32]} Na2 {[%emt 0:10:49]} 17. Rxc8+ {[%emt 0:04:20]} Rxc8 {[%emt 0:00:18]} 18. g4 {[%emt 0:02:14]} Nb4 {[%emt 0:04:19]} 19. gxf5 {[%emt 0:13:24]} exf5 {[%emt 0:01:25]} 20. Nd2 {[%emt 0:00:39]} Rc7 {[%emt 0:07:08]} 21. Ndf3 {[%emt 0:02:33]} Qe8 {[%emt 0:01:04]} 22. Rc1 {[%emt 0:02:43]} Rxc1+ {[%emt 0:01:06]} 23. Bxc1 {[%emt 0:00:06]} Qc8 {[%emt 0:01:16]} 24. Bb2 {[%emt 0:00:41]} Nxd3 {[%emt 0:01:52]} 25. Qxd3 {[%emt 0:01:19]} Ba6 {[%emt 0:00:16]} 26. Qd1 {[%emt 0:00:35]} Bb4 {[%emt 0:01:25]} 27. Qc1 {[%emt 0:01:23]} Qxc1+ {[%emt 0:01:06]} 28. Bxc1 {[%emt 0:00:08]} Be2 {[%emt 0:00:43]} 29. Kg2 {[%emt 0:01:26]} Bd1 {[%emt 0:02:03]} 30. Nc6 {[%emt 0:00:57]} Bf8 {[%emt 0:00:44]} 31. Nxa7 {[%emt 0:01:17]} Bxb3 {[%emt 0:00:12]} 32. Nc8 {[%emt 0:00:39]} Bxa4 {[%emt 0:01:45]} 33. Nxb6 {[%emt 0:00:12]} Bb3 {[%emt 0:00:12]} 34. Ne5 {[%emt 0:01:01]} g6 {[%emt 0:01:21]} 35. Bb2 {[%emt 0:03:19]} Kg7 {[%emt 0:00:43]} 36. Nbd7 {[%emt 0:00:14]} Bd6 {[%emt 0:00:19]} 37. Bc1 {[%emt 0:00:40]} Bb4 {[%emt 0:02:06]} 38. Nc6 {[%emt 0:01:13]} Bd6 {[%emt 0:01:02]} 39. Nce5 {[%emt 0:00:10]} h6 {[%emt 0:02:28]} 40. Kf3 {[%emt 0:00:00]} g5 {[%emt 0:00:00]} 41. fxg5 {[%emt 0:05:07]} hxg5 {[%emt 0:01:47]} 42. h3 {[%emt 0:01:34]} Bd1+ {[%emt 0:08:45]} 43. Kg2 {[%emt 0:00:19]} g4 {[%emt 0:02:41]} 44. hxg4 {[%emt 0:02:25]} fxg4 {[%emt 0:00:14]} 45. Nb6 {[%emt 0:10:43]} Bxe5 {[%emt 0:07:09]} 46. dxe5 {[%emt 0:01:12]} Bf3+ {[%emt 0:00:10]} 47. Kf1 {[%emt 0:06:09]} Ng3+ {[%emt 0:01:13]} 48. Kf2 {[%emt 0:00:44]} Nf5 {[%emt 0:00:57]} 49. Bb2 {[%emt 0:01:28]} Kf7 {[%emt 0:00:18]} 50. Nc8 {[%emt 0:02:10]} Ke6 {[%emt 0:01:09]} 51. Nd6 {[%emt 0:00:37]} Ne7 {[%emt 0:06:41]} 52. Nb5 {[%emt 0:01:11]} Nc6 {[%emt 0:02:19]} 53. Nd4+ {[%emt 0:01:02]} Nxd4 {[%emt 0:00:06]} 54. Bxd4 {[%emt 0:00:14]} 1/2-1/2

[Event "Mitropa Online Cup Women 2021"]
[Site "Hybrid"]
[Date "2021.05.04"]
[Round "4.5"]
[White "Vujnovic, Patricija"]
[Black "Rozman, Monika"]
[Result "1/2-1/2"]
[ECO "D00"]
[WhiteElo "2129"]
[BlackElo "2175"]
[Annotator "NA"]
[PlyCount "86"]
[EventDate "2021.05.04"]
[EventType "team-tourn"]
[EventCountry "NET"]
[SourceTitle "playchess.com"]
[Source "ChessBase"]
[SourceQuality "1"]
[WhiteTeam "Croatia"]
[BlackTeam "Slovenia"]
[WhiteTeamCountry "CRO"]
[BlackTeamCountry "SLO"]
[TimeControl "40/5400+30:1800+30"]

1. d4 {[%emt 0:00:00]} Nf6 {[%emt 0:00:07]} 2. Nc3 {[%emt 0:00:11]} d5 {[%emt 0:00:15]} 3. Bf4 {[%emt 0:00:14]} Bf5 {[%emt 0:07:18]} 4. e3 {[%emt 0:00:46]} e6 {[%emt 0:01:07]} 5. Nb5 {[%emt 0:03:22]} Na6 {[%emt 0:01:52]} 6. f3 {[%emt 0:17:50]} c6 {[%emt 0:09:22]} 7. Nc3 {[%emt 0:00:40]} Qb6 {[%emt 0:04:06]} 8. Qd2 {[%emt 0:18:01]} Qxb2 {[%emt 0:09:04]} 9. Rb1 {[%emt 0:00:11]} Qa3 {[%emt 0:01:44]} 10. g4 {[%emt 0:02:33]} Bg6 {[%emt 0:01:43]} 11. h4 {[%emt 0:13:06]} Nb4 {[%emt 0:06:05]} 12. Bd3 {[%emt 0:02:10]} Nxa2 {[%emt 0:06:07]} 13. Nxa2 {[%emt 0:06:59]} Qxa2 {[%emt 0:00:17]} 14. Rxb7 {[%emt 0:00:10]} a5 {[%emt 0:02:51]} 15. Bxg6 {[%emt 0:03:24]} hxg6 {[%emt 0:01:42]} 16. Kf2 {[%emt 0:01:43]} Bb4 {[%emt 0:03:56]} 17. Qd3 {[%emt 0:00:21]} Qc4 {[%emt 0:16:14]} 18. Qxc4 {[%emt 0:05:36]} dxc4 {[%emt 0:00:04]} 19. Ne2 {[%emt 0:00:42]} Nd5 {[%emt 0:00:41]} 20. Bg3 {[%emt 0:05:20]} O-O {[%emt 0:01:27]} 21. c3 {[%emt 0:05:27]} Nxc3 {[%emt 0:01:43]} 22. Nxc3 {[%emt 0:00:23]} Bxc3 {[%emt 0:00:02]} 23. Rc1 {[%emt 0:00:14]} Bb4 {[%emt 0:00:15]} 24. Rxc4 {[%emt 0:00:23]} Rac8 {[%emt 0:01:20]} 25. Bc7 {[%emt 0:03:09]} Rfe8 {[%emt 0:02:37]} 26. Rxc6 {[%emt 0:00:19]} Be7 {[%emt 0:03:17]} 27. g5 {[%emt 0:04:18]} Bd8 {[%emt 0:00:48]} 28. Bxd8 {[%emt 0:01:44]} Rxc6 {[%emt 0:01:18]} 29. Bxa5 {[%emt 0:00:24]} Ra8 {[%emt 0:01:29]} 30. Bc7 {[%emt 0:00:23]} Rc2+ {[%emt 0:01:53]} 31. Kg3 {[%emt 0:00:05]} Ra3 {[%emt 0:00:28]} 32. Rb8+ {[%emt 0:01:19]} Kh7 {[%emt 0:00:04]} 33. Bf4 {[%emt 0:00:04]} Ra7 {[%emt 0:00:51]} 34. Rf8 {[%emt 0:01:20]} Re2 {[%emt 0:02:53]} 35. e4 {[%emt 0:02:48]} Rd7 {[%emt 0:01:14]} 36. Be5 {[%emt 0:00:06]} Re1 {[%emt 0:05:11]} 37. Kf2 {[%emt 0:01:39]} Rh1 {[%emt 0:00:05]} 38. Kg3 {[%emt 0:00:04]} Rd1 {[%emt 0:01:03]} 39. Kh3 {[%emt 0:00:37]} Rb7 {[%emt 0:00:41]} 40. Kg3 {[%emt 0:00:00]} Rd3 {[%emt 0:00:00]} 41. Kg4 {[%emt 0:01:23]} Re3 {[%emt 0:00:49]} 42. Kg3 {[%emt 0:00:44]} Rd3 {[%emt 0:06:30]} 43. Kg4 {[%emt 0:00:21]} Re3 {[%emt 0:00:28]} 1/2-1/2

[Event "Mitropa Online Cup Women 2021"]
[Site "Hybrid"]
[Date "2021.05.04"]
[Round "4.5"]
[White "Hercog, Nusa"]
[Black "Spiranec, Noemi"]
[Result "1-0"]
[ECO "E21"]
[WhiteElo "2088"]
[BlackElo "2098"]
[Annotator "NA"]
[PlyCount "73"]
[EventDate "2021.05.04"]
[EventType "team-tourn"]
[EventCountry "NET"]
[SourceTitle "playchess.com"]
[Source "ChessBase"]
[SourceQuality "1"]
[WhiteTeam "Slovenia"]
[BlackTeam "Croatia"]
[WhiteTeamCountry "SLO"]
[BlackTeamCountry "CRO"]
[TimeControl "40/5400+30:1800+30"]

1. d4 {[%emt 0:00:00]} Nf6 {[%emt 0:00:10]} 2. c4 {[%emt 0:00:10]} e6 {[%emt 0:00:06]} 3. Nc3 {[%emt 0:00:11]} Bb4 {[%emt 0:00:14]} 4. Nf3 {[%emt 0:00:20]} O-O {[%emt 0:00:20]} 5. Bg5 {[%emt 0:00:51]} c5 {[%emt 0:00:19]} 6. Rc1 {[%emt 0:02:50]} cxd4 {[%emt 0:16:40]} 7. Nxd4 {[%emt 0:01:20]} d5 {[%emt 0:01:06]} 8. cxd5 {[%emt 0:06:04]} Qxd5 {[%emt 0:04:12]} 9. Bxf6 {[%emt 0:08:41]} gxf6 {[%emt 0:00:04]} 10. a3 {[%emt 0:05:46]} Bxc3+ {[%emt 0:02:15]} 11. Rxc3 {[%emt 0:04:31]} e5 {[%emt 0:01:17]} 12. Qc1 {[%emt 0:04:16]} Qa5 {[%emt 0:13:52]} 13. Qh6 {[%emt 0:19:02]} exd4 {[%emt 0:06:08]} 14. b4 {[%emt 0:00:14]} dxc3 {[%emt 0:03:06]} 15. bxa5 {[%emt 0:00:12]} Bf5 {[%emt 0:01:43]} 16. g4 {[%emt 0:04:25]} Bg6 {[%emt 0:03:59]} 17. Bg2 {[%emt 0:01:36]} Na6 {[%emt 0:09:07]} 18. f4 {[%emt 0:03:02]} Rad8 {[%emt 0:07:05]} 19. Kf2 {[%emt 0:07:54]} f5 {[%emt 0:03:36]} 20. Rc1 {[%emt 0:03:39]} fxg4 {[%emt 0:01:13]} 21. Rxc3 {[%emt 0:01:27]} Rd7 {[%emt 0:01:23]} 22. f5 {[%emt 0:02:55]} Bxf5 {[%emt 0:00:35]} 23. Qg5+ {[%emt 0:03:38]} Bg6 {[%emt 0:00:32]} 24. Qxg4 {[%emt 0:00:11]} Re7 {[%emt 0:00:38]} 25. Rc8 {[%emt 0:01:36]} f5 {[%emt 0:00:28]} 26. Qc4+ {[%emt 0:00:44]} Bf7 {[%emt 0:00:59]} 27. Rxf8+ {[%emt 0:01:05]} Kxf8 {[%emt 0:00:04]} 28. Qc8+ {[%emt 0:00:22]} Kg7 {[%emt 0:00:04]} 29. Qxf5 {[%emt 0:00:53]} Bg6 {[%emt 0:00:52]} 30. Qb5 {[%emt 0:00:29]} Rf7+ {[%emt 0:00:20]} 31. Kg1 {[%emt 0:00:39]} Nc7 {[%emt 0:00:54]} 32. Qxb7 {[%emt 0:00:22]} Ne6 {[%emt 0:00:06]} 33. Qb2+ {[%emt 0:00:23]} Kf8 {[%emt 0:00:40]} 34. Bd5 {[%emt 0:00:49]} Re7 {[%emt 0:01:01]} 35. Qf6+ {[%emt 0:00:32]} Bf7 {[%emt 0:00:04]} 36. a6 {[%emt 0:03:05]} h5 {[%emt 0:03:10]} 37. Qh8+ {[%emt 0:01:11]} 1-0

[Event "Mitropa Online Cup Women 2021"]
[Site "Hybrid"]
[Date "2021.05.04"]
[Round "5.1"]
[White "Sieber, Fiona"]
[Black "Rozman, Monika"]
[Result "1-0"]
[ECO "C95"]
[WhiteElo "2275"]
[BlackElo "2175"]
[Annotator "NA"]
[PlyCount "57"]
[EventDate "2021.05.04"]
[EventType "team-tourn"]
[EventCountry "NET"]
[SourceTitle "playchess.com"]
[Source "ChessBase"]
[SourceQuality "1"]
[WhiteTeam "Germany"]
[BlackTeam "Slovenia"]
[WhiteTeamCountry "GER"]
[BlackTeamCountry "SLO"]
[TimeControl "40/5400+30:1800+30"]

1. e4 {[%emt 0:00:00]} e5 {[%emt 0:00:06]} 2. Nf3 {[%emt 0:00:07]} Nc6 {[%emt 0:00:05]} 3. Bb5 {[%emt 0:00:08]} a6 {[%emt 0:00:04]} 4. Ba4 {[%emt 0:00:07]} Nf6 {[%emt 0:00:05]} 5. O-O {[%emt 0:00:08]} Be7 {[%emt 0:00:14]} 6. Re1 {[%emt 0:00:10]} b5 {[%emt 0:00:06]} 7. Bb3 {[%emt 0:00:05]} d6 {[%emt 0:00:09]} 8. c3 {[%emt 0:00:04]} O-O {[%emt 0:00:09]} 9. h3 {[%emt 0:00:08]} Nb8 {[%emt 0:00:08]} 10. d4 {[%emt 0:00:14]} Nbd7 {[%emt 0:00:07]} 11. c4 {[%emt 0:00:15]} Bb7 {[%emt 0:05:09]} 12. Nc3 {[%emt 0:01:05]} c6 {[%emt 0:07:33]} 13. c5 {[%emt 0:05:54]} Qc7 {[%emt 0:12:11]} 14. cxd6 {[%emt 0:06:31]} Bxd6 {[%emt 0:00:27]} 15. Bg5 {[%emt 0:03:05]} Be7 {[%emt 0:16:46]} 16. Rc1 {[%emt 0:10:07]} Rad8 {[%emt 0:07:09]} 17. Nd5 {[%emt 0:03:58]} Nxd5 {[%emt 0:08:33]} 18. exd5 {[%emt 0:00:44]} Bxg5 {[%emt 0:00:08]} 19. Nxg5 {[%emt 0:00:08]} h6 {[%emt 0:10:19]} 20. Nxf7 {[%emt 0:06:38]} Rxf7 {[%emt 0:00:52]} 21. d6 {[%emt 0:04:35]} Qb6 {[%emt 0:04:22]} 22. Bxf7+ {[%emt 0:05:46]} Kxf7 {[%emt 0:00:12]} 23. dxe5 {[%emt 0:00:35]} Kg8 {[%emt 0:01:09]} 24. e6 {[%emt 0:04:41]} Rf8 {[%emt 0:01:42]} 25. Rc2 {[%emt 0:02:44]} c5 {[%emt 0:01:22]} 26. exd7 {[%emt 0:01:16]} Qc6 {[%emt 0:00:28]} 27. Qg4 {[%emt 0:00:54]} h5 {[%emt 0:04:27]} 28. Qg6 {[%emt 0:01:20]} Qxd7 {[%emt 0:00:48]} 29. Re7 {[%emt 0:00:31]} 1-0